fUSD/lending_fUSD_20240327
["ID","MTS","AMOUNT","RATE_DAILY","PERIOD"]
[320710511,1711525847574,-151.0,0.00054794,120]
[320710513,1711525847583,-559.73,0.00054794,120]
[320710516,1711525847597,-637.29,0.00054794,120]
[320710517,1711525847607,-500.0,0.00054794,120]
[320710519,1711525847616,-500.0,0.00054794,120]
[320710521,1711525847625,-426.56847446,0.00054794,120]
[320710524,1711525847635,-500.0,0.00054794,120]
[320710526,1711525847644,-505.97,0.00054794,120]
[320710527,1711525847655,-941.11,0.00054794,120]
[320710529,1711525847665,-500.0,0.00054794,120]
[320710531,1711525847674,-500.0,0.00054794,120]
[320710533,1711525847683,-500.0,0.00054794,120]
[320710536,1711525847692,-500.0,0.00054794,120]
[320710538,1711525847701,-500.0,0.00054794,120]
[320710539,1711525847710,-1505.84,0.00054794,120]
[320710541,1711525847720,-500.0,0.00054794,120]
[320710543,1711525847730,-500.0,0.00054794,120]
[320710545,1711525847739,-500.0,0.00054794,120]
[320710548,1711525847748,-1045.32,0.00054794,120]
[320710549,1711525847757,-500.0,0.00054794,120]
[320710551,1711525847767,-500.0,0.00054794,120]
[320710553,1711525847776,-151.0,0.00054794,120]
[320710555,1711525847785,-500.0,0.00054794,120]
[320710557,1711525847794,-151.0,0.00054794,120]
[320710558,1711525847803,-500.0,0.00054794,120]
[320710559,1711525847812,-660.1,0.00054794,120]
[320710560,1711525847821,-507.88649122,0.00054794,120]
[320710561,1711525847830,-500.0,0.00054794,120]
[320710562,1711525847839,-502.51,0.00054794,120]
[320710563,1711525847848,-873.33,0.00054794,120]
[320710564,1711525847857,-221.656029,0.00054794,120]
[320710565,1711525847866,-151.0,0.00054794,120]
[320710566,1711525847875,-221.656029,0.00054794,120]
[320710567,1711525847884,-151.0,0.00054794,120]
[320710569,1711525847893,-530.21,0.00054794,120]
[320710571,1711525847904,-221.656029,0.00054794,120]
[320710573,1711525847914,-221.656029,0.00054794,120]
[320710575,1711525847923,-1369.65,0.00054794,120]
[320710577,1711525847932,-500.0,0.00054794,120]
[320710579,1711525847942,-500.0,0.00054794,120]
[320710581,1711525847951,-855.77,0.00054794,120]
[320710583,1711525847960,-151.0,0.00054794,120]
[320710585,1711525847969,-151.0,0.00054794,120]
[320710587,1711525847978,-500.90822023,0.00054794,120]
[320710589,1711525847988,-500.0,0.00054794,120]
[320710591,1711525847997,-151.0,0.00054794,120]
[320710593,1711525848006,-151.0,0.00054794,120]
[320710595,1711525848015,-180.70470227,0.00054794,120]
[320710597,1711525848024,-151.0,0.00054794,120]
[320710599,1711525848034,-737.8,0.00054794,120]
[320710601,1711525848043,-500.0,0.00054794,120]
[320710603,1711525848051,-151.0,0.00054794,120]
[320710605,1711525848060,-500.0,0.00054794,120]
[320710607,1711525848069,-500.0,0.00054794,120]
[320710609,1711525848078,-500.0,0.00054794,120]
[320710611,1711525848087,-151.0,0.00054794,120]
[320710613,1711525848096,-151.0,0.00054794,120]
[320710615,1711525848105,-886.25,0.00054794,120]
[320710617,1711525848114,-1671.21,0.00054794,120]
[320710619,1711525848123,-507.35007243,0.00054794,120]
[320710621,1711525848133,-500.0,0.00054794,120]
[320710623,1711525848142,-500.0,0.00054794,120]
[320710625,1711525848153,-525.76,0.00054794,120]
[320710627,1711525848162,-500.0,0.00054794,120]
[320710629,1711525848171,-500.0,0.00054794,120]
[320710631,1711525848179,-500.0,0.00054794,120]
[320710633,1711525848189,-500.0,0.00054794,120]
[320710635,1711525848198,-500.0,0.00054794,120]
[320710637,1711525848209,-279.90530145,0.00054794,120]
[320710639,1711525848218,-462.99622238,0.00054794,120]
[320710641,1711525848231,-2822.36,0.00054794,120]
[320710643,1711525848240,-1236.77,0.00054794,120]
[320710660,1711525848377,-516.93901271,0.00054794,120]
[320710663,1711525848404,-598.78654911,0.00054794,120]
[320710665,1711525848413,-500.0,0.00054794,60]
[320710667,1711525848422,-1164.5,0.00054794,120]
[320710669,1711525848431,-1120.73,0.00054794,120]
[320710671,1711525848440,-500.0,0.00054794,120]
[320710673,1711525848449,-151.0,0.00054794,120]
[320710675,1711525848458,-151.0,0.00054794,120]
[320710677,1711525848467,-151.0,0.00054794,120]
[320710679,1711525848477,-151.0,0.00054794,120]
[320710680,1711525848487,-1144.25,0.00054794,120]
[320710683,1711525848497,-1439.78,0.00054794,120]
[320710684,1711525848506,-428.74438921,0.00054794,120]
[320710687,1711525848515,-151.0,0.00054794,120]
[320710688,1711525848525,-151.0,0.00054794,120]
[320710691,1711525848534,-500.0,0.00054794,120]
[320710693,1711525848544,-1000.34,0.00054794,120]
[320710695,1711525848553,-500.0,0.00054794,120]
[320710696,1711525848562,-500.0,0.00054794,120]
[320710699,1711525848572,-500.0,0.00054794,120]
[320710700,1711525848581,-1262.4,0.00054794,120]
[320710703,1711525848592,-980.54,0.00054794,120]
[320710705,1711525848602,-2126.89,0.00054794,120]
[320710706,1711525848611,-500.0,0.00054794,120]
[320710708,1711525848620,-500.0,0.00054794,120]
[320710710,1711525848630,-2798.56,0.00054794,120]
[320710713,1711525848642,-151.0,0.00054794,120]
[320710714,1711525848653,-500.0,0.00054794,120]
[320710716,1711525848662,-500.0,0.00054794,120]
[320710718,1711525848671,-500.0,0.00054794,120]
[320710720,1711525848683,-151.0,0.00054794,120]
[320710722,1711525848693,-500.0,0.00054794,120]
[320710724,1711525848703,-1130.52,0.00054794,120]
[320710726,1711525848712,-500.0,0.00054794,120]
[320710728,1711525848723,-508.0,0.00054794,120]
[320710730,1711525848733,-1579.45,0.00054794,120]
[320710732,1711525848743,-151.0,0.00054794,120]
[320710734,1711525848752,-152.39744,0.00054794,120]
[320710736,1711525848762,-949.69,0.00054794,120]
[320710738,1711525848771,-561.16,0.00054794,120]
[320710740,1711525848781,-1025.89,0.00054794,120]
[320710742,1711525848790,-500.0,0.00054794,120]
[320710744,1711525848799,-564.58,0.00054794,120]
[320710746,1711525848807,-500.0,0.00054794,120]
[320710748,1711525848817,-500.0,0.00054794,120]
[320710750,1711525848826,-2866.9,0.00054794,120]
[320710752,1711525848835,-700.92,0.00054794,120]
[320710754,1711525848846,-500.0,0.00054794,120]
[320710756,1711525848855,-9354.09,0.00054794,120]
[320710758,1711525848864,-689.19,0.00054794,120]
[320710760,1711525848873,-500.0,0.00054794,120]
[320710762,1711525848883,-5129.23,0.00054794,120]
[320710764,1711525848892,-500.0,0.00054794,120]
[320710766,1711525848902,-1703.26,0.00054794,120]
[320710768,1711525848913,-725.59,0.00054794,120]
[320710770,1711525848922,-568.56,0.00054794,120]
[320710772,1711525848932,-510.82619527,0.00054794,120]
[320710774,1711525848941,-500.0,0.00054794,120]
[320710776,1711525848950,-12075.46,0.00054794,120]
[320710778,1711525848960,-1809.32,0.00054794,120]
[320710780,1711525848969,-1749.21,0.00054794,120]
[320710782,1711525848978,-500.0,0.00054794,120]
[320710784,1711525848987,-505.57,0.00054794,120]
[320710786,1711525848996,-6555.48,0.00054794,120]
[320710788,1711525849007,-151.0,0.00054794,120]
[320710790,1711525849016,-151.0,0.00054794,120]
[320710792,1711525849025,-17037.33,0.00054794,120]
[320710794,1711525849034,-1375.55,0.00054794,120]
[320710796,1711525849043,-500.0,0.00054794,120]
[320710798,1711525849052,-500.0,0.00054794,120]
[320710800,1711525849062,-1402.96,0.00054794,120]
[320710802,1711525849070,-800.71,0.00054794,120]
[320710804,1711525849079,-2221.01,0.00054794,120]
[320710806,1711525849089,-1019.8,0.00054794,120]
[320710808,1711525849098,-1393.86,0.00054794,120]
[320710810,1711525849107,-2214.34,0.00054794,120]
[320710812,1711525849116,-500.0,0.00054794,120]
[320710814,1711525849125,-1468.83,0.00054794,120]
[320710816,1711525849135,-543.03,0.00054794,120]
[320710818,1711525849144,-946.06,0.00054794,120]
[320710820,1711525849154,-500.0,0.00054794,120]
[320710822,1711525849163,-500.0,0.00054794,120]
[320710824,1711525849172,-500.0,0.00054794,120]
[320710826,1711525849181,-2715.5,0.00054794,120]
[320710828,1711525849191,-2155.85,0.00054794,120]
[320710830,1711525849200,-5129.51,0.00054794,120]
[320710832,1711525849209,-151.0,0.00054794,120]
[320710835,1711525849219,-151.0,0.00054794,120]
[320710836,1711525849231,-2023.57,0.00054794,120]
[320710839,1711525849241,-1427.44,0.00054794,120]
[320710841,1711525849250,-500.0,0.00054794,120]
[320710843,1711525849259,-500.0,0.00054794,120]
[320710845,1711525849269,-500.0,0.00054794,120]
[320710847,1711525849279,-2375.79,0.00054794,120]
[320710849,1711525849287,-522.73,0.00054794,120]
[320710851,1711525849297,-151.0,0.00054794,120]
[320710853,1711525849306,-500.0,0.00054794,120]
[320710855,1711525849315,-151.0,0.00054794,120]
[320710856,1711525849326,-21788.91,0.00054794,120]
[320710859,1711525849335,-2101.95,0.00054794,120]
[320710861,1711525849345,-151.0,0.00054794,120]
[320710863,1711525849355,-520.07,0.00054794,120]
[320710864,1711525849364,-152.199786,0.00054794,120]
[320710866,1711525849374,-500.0,0.00054794,120]
[320710869,1711525849383,-151.0,0.00054794,120]
[320710871,1711525849393,-294.291814,0.00054794,120]
[320710873,1711525849402,-500.0,0.00054794,120]
[320710874,1711525849411,-999.85,0.00054794,120]
[320710877,1711525849420,-550.38,0.00054794,120]
[320710879,1711525849431,-500.0,0.00054794,120]
[320710880,1711525849440,-500.0,0.00054794,120]
[320710883,1711525849450,-2978.93,0.00054794,120]
[320710884,1711525849460,-478.69132212,0.00054794,120]
[320710887,1711525849469,-500.0,0.00054794,120]
[320710889,1711525849478,-14043.35,0.00054794,120]
[320710891,1711525849488,-500.0,0.00054794,120]
[320710893,1711525849497,-500.0,0.00054794,120]
[320710895,1711525849507,-24553.64,0.00054794,120]
[320710897,1711525849516,-1794.73,0.00054794,120]
[320710898,1711525849526,-35887.03,0.00054794,120]
[320710901,1711525849536,-500.0,0.00054794,120]
[320710903,1711525849545,-151.0,0.00054794,120]
[320710905,1711525849554,-500.0,0.00054794,120]
[320710906,1711525849564,-151.0,0.00054794,120]
[320710908,1711525849573,-500.0,0.00054794,120]
[320710911,1711525849583,-699.48,0.00054794,120]
[320710913,1711525849592,-2112.01,0.00054794,120]
[320710914,1711525849601,-500.0,0.00054794,120]
[320710916,1711525849611,-500.0,0.00054794,120]
[320710919,1711525849620,-56250.3,0.00054794,120]
[320710920,1711525849629,-1213.57,0.00054794,120]
[320710922,1711525849640,-500.0,0.00054794,120]
[320710925,1711525849649,-1785.65,0.00054794,120]
[320710927,1711525849659,-2362.09,0.00054794,120]
[320710929,1711525849668,-500.0,0.00054794,120]
[320710930,1711525849677,-1903.11,0.00054794,120]
[320710932,1711525849686,-151.0,0.00054794,30]
[320710935,1711525849696,-151.0,0.00054794,30]
[320710937,1711525849706,-266.8341305,0.00054794,120]
[320710939,1711525849715,-500.0,0.00054794,120]
[320710941,1711525849725,-2646.84,0.00054794,120]
[320710943,1711525849734,-1544.62,0.00054794,120]
[320710944,1711525849744,-1354.16,0.00054794,120]
[320710946,1711525849753,-597.56,0.00054794,120]
[320710948,1711525849762,-1663.15,0.00054794,120]
[320710950,1711525849771,-5180.1,0.00054794,120]
[320710952,1711525849781,-500.0,0.00054794,7]
[320710954,1711525849789,-655.35,0.00054794,120]
[320710957,1711525849799,-8156.33,0.00054794,120]
[320710959,1711525849808,-2446.05,0.00054794,120]
[320710961,1711525849817,-1305.52,0.00054794,120]
[320710963,1711525849826,-628.6,0.00054794,120]
[320710965,1711525849835,-1970.46,0.00054794,120]
[320710966,1711525849844,-500.0,0.00054794,120]
[320710969,1711525849854,-10817.24,0.00054794,120]
[320710971,1711525849863,-4578.48,0.00054794,120]
[320710973,1711525849872,-500.0,0.00054794,120]
[320710975,1711525849881,-500.0,0.00054794,120]
[320710977,1711525849891,-1300.492468,0.00054794,120]
[320710979,1711525849899,-1300.492468,0.00054794,120]
[320710981,1711525849910,-5735.51,0.00054794,120]
[320710982,1711525849920,-500.0,0.00054794,120]
[320710984,1711525849930,-1110.31,0.00054794,120]
[320710986,1711525849939,-500.0,0.00054794,120]
[320710988,1711525849948,-5293.74,0.00054794,120]
[320710990,1711525849958,-1300.492468,0.00054794,120]
[320710992,1711525849967,-1300.492468,0.00054794,120]
[320710995,1711525849977,-151.0,0.00054794,120]
[320710997,1711525849986,-151.0,0.00054794,120]
[320710999,1711525849995,-528.89,0.00054794,120]
[320711001,1711525850005,-830.37,0.00054794,120]
[320711003,1711525850014,-4682.48,0.00054794,120]
[320711005,1711525850023,-2487.61,0.00054794,120]
[320711007,1711525850033,-151.0,0.00054794,120]
[320711009,1711525850042,-639.09,0.00054794,120]
[320711010,1711525850052,-151.0,0.00054794,120]
[320711013,1711525850061,-3685.36573167,0.00054794,120]
[320711037,1711525850398,-1100.10426833,0.00054794,120]
[320711039,1711525850411,-334.65253752,0.00054794,120]
[320711041,1711525850420,-500.0,0.00054794,120]
[320711043,1711525850430,-151.0,0.00054794,120]
[320711045,1711525850439,-151.0,0.00054794,120]
[320711047,1711525850448,-500.0,0.00054794,120]
[320711049,1711525850458,-7997.44,0.00054794,120]
[320711051,1711525850468,-778.48,0.00054794,120]
[320711053,1711525850477,-3450.0773779,0.00054794,120]
[320711055,1711525850490,-34992.60434766,0.00054794,120]
[320711074,1711525850669,-476.19345125,0.00054794,120]
[320711076,1711525850683,-496.40818381,0.00054794,120]
[320711079,1711525850696,-2744.81144943,0.00054794,120]
[320711081,1711525850709,-16963.13518995,0.00054794,120]
[320711083,1711525850719,-151.0,0.00054794,120]
[320711085,1711525850729,-721.44,0.00054794,120]
[320711087,1711525850739,-151.0,0.00054794,120]
[320711089,1711525850749,-500.0,0.00054794,120]
[320711091,1711525850759,-2811.63,0.00054794,120]
[320711093,1711525850768,-625.28,0.00054794,120]
[320711095,1711525850778,-4624.27,0.00054794,120]
[320711097,1711525850787,-2153.06,0.00054794,120]
[320711098,1711525850797,-793.14,0.00054794,120]
[320711101,1711525850806,-10156.79,0.00054794,120]
[320711103,1711525850816,-500.0,0.00054794,120]
[320711105,1711525850825,-5595.24,0.00054794,120]
[320711107,1711525850834,-500.0,0.00054794,2]
[320711108,1711525850844,-500.0,0.00054794,120]
[320711109,1711525850853,-151.0,0.00054794,120]
[320711110,1711525850863,-5925.3,0.00054794,120]
[320711111,1711525850872,-500.0,0.00054794,120]
[320711112,1711525850882,-151.0,0.00054794,120]
[320711113,1711525850891,-1688.95,0.00054794,120]
[320711114,1711525850904,-1688.95,0.00054794,120]
[320711115,1711525850913,-1688.95,0.00054794,120]
[320711116,1711525850922,-1688.95,0.00054794,120]
[320711117,1711525850931,-1707.47,0.00054794,120]
[320711118,1711525850945,-1688.95,0.00054794,120]
[320711119,1711525850955,-1688.95,0.00054794,120]
[320711120,1711525850964,-1688.95,0.00054794,120]
[320711121,1711525850974,-1688.95,0.00054794,120]
[320711122,1711525850983,-500.0,0.00054794,120]
[320711123,1711525850992,-1688.95,0.00054794,120]
[320711124,1711525851003,-500.0,0.00054794,120]
[320711125,1711525851012,-1688.95,0.00054794,120]
[320711126,1711525851021,-1688.95,0.00054794,120]
[320711127,1711525851031,-500.0,0.00054794,120]
[320711128,1711525851041,-539.77089015,0.00054794,120]
[320711129,1711525851050,-1688.95,0.00054794,120]
[320711130,1711525851060,-1688.95,0.00054794,120]
[320711131,1711525851070,-500.0,0.00054794,120]
[320711132,1711525851082,-1688.95,0.00054794,120]
[320711133,1711525851092,-1688.95,0.00054794,120]
[320711134,1711525851101,-4383.37366681,0.00054794,120]
[320711135,1711525851128,-1634.00633319,0.00054794,120]
[320711136,1711525851138,-1688.95,0.00054794,120]
[320711137,1711525851148,-1688.95,0.00054794,120]
[320711138,1711525851162,-1688.95,0.00054794,120]
[320711139,1711525851172,-1688.95,0.00054794,120]
[320711140,1711525851182,-507.44061869,0.00054794,120]
[320711141,1711525851192,-16930.37,0.00054794,120]
[320711142,1711525851201,-767.5,0.00054794,120]
[320711143,1711525851211,-597.22,0.00054794,120]
[320711144,1711525851224,-6791.1,0.00054794,120]
[320711145,1711525851233,-500.0,0.00054794,120]
[320711146,1711525851243,-151.0,0.00054794,7]
[320711147,1711525851252,-151.0,0.00054794,7]
[320711148,1711525851263,-2332.74,0.00054794,120]
[320711149,1711525851273,-500.0,0.00054794,120]
[320711150,1711525851282,-688.45,0.00054794,120]
[320711151,1711525851292,-1067.78,0.00054794,120]
[320711152,1711525851302,-2124.83,0.00054794,120]
[320711153,1711525851313,-979.12,0.00054794,120]
[320711154,1711525851323,-500.0,0.00054794,120]
[320711155,1711525851333,-1024.98,0.00054794,120]
[320711156,1711525851344,-500.0,0.00054794,120]
[320711157,1711525851353,-500.0,0.00054794,120]
[320711158,1711525851363,-4437.15,0.00054794,120]
[320711159,1711525851372,-5620.71,0.00054794,120]
[320711160,1711525851381,-562.4904538,0.00054794,120]
[320711161,1711525851391,-500.0,0.00054794,55]
[320711162,1711525851405,-1121.34,0.00054794,120]
[320711163,1711525851414,-500.0,0.00054794,120]
[320711164,1711525851425,-22653.19,0.00054794,120]
[320711165,1711525851435,-19627.16,0.00054794,120]
[320711166,1711525851445,-151.0,0.00054794,120]
[320711167,1711525851455,-151.0,0.00054794,120]
[320711168,1711525851465,-2483.28,0.00054794,120]
[320711169,1711525851474,-581.9,0.00054794,120]
[320711170,1711525851484,-6047.37,0.00054794,21]
[320711171,1711525851494,-3740.12,0.00054794,120]
[320711172,1711525851504,-7851.37,0.00054794,120]
[320711173,1711525851513,-500.0,0.00054794,120]
[320711174,1711525851523,-2111.47,0.00054794,120]
[320711175,1711525851533,-500.0,0.00054794,120]
[320711176,1711525851542,-500.0,0.00054794,120]
[320711177,1711525851552,-151.0,0.00054794,120]
[320711178,1711525851562,-151.0,0.00054794,120]
[320711179,1711525851571,-919.37,0.00054794,120]
[320711180,1711525851582,-2142.51,0.00054794,120]
[320711181,1711525851593,-1323.39,0.00054794,120]
[320711182,1711525851602,-151.0,0.00054794,120]
[320711183,1711525851611,-151.0,0.00054794,120]
[320711184,1711525851622,-2674.38,0.00054794,120]
[320711185,1711525851632,-8591.58,0.00054794,120]
[320711186,1711525851641,-500.0,0.00054794,120]
[320711187,1711525851650,-2104.03,0.00054794,120]
[320711188,1711525851663,-250.368044,0.00054794,120]
[320711189,1711525851672,-323.62679809,0.00054794,120]
[320711190,1711525851681,-5237.22,0.00054794,120]
[320711191,1711525851690,-1069.03,0.00054794,120]
[320711192,1711525851699,-500.0,0.00054794,120]
[320711193,1711525851708,-500.0,0.00054794,120]
[320711194,1711525851721,-999.3,0.00054794,120]
[320711195,1711525851731,-1298.48,0.00054794,120]
[320711196,1711525851742,-151.0,0.00054794,120]
[320711197,1711525851752,-151.0,0.00054794,120]
[320711198,1711525851762,-12547.24,0.00054794,120]
[320711199,1711525851774,-6304.68,0.00054794,120]
[320711200,1711525851785,-2880.09,0.00054794,120]
[320711201,1711525851796,-558.23,0.00054794,120]
[320711202,1711525851808,-1817.87,0.00054794,120]
[320711203,1711525851819,-804.68,0.00054794,120]
[320711204,1711525851828,-567.71,0.00054794,120]
[320711205,1711525851838,-500.0,0.00054794,120]
[320711206,1711525851848,-21092.99204488,0.00054794,120]
[320711207,1711525853223,-797.56108842,0.00037798,2]
[320711208,1711525853238,-455.79124797,0.00037798,2]
[320711209,1711525853248,-279.6903,0.00048743,30]
[320711210,1711525853258,-151.0,0.00054,120]
[320711211,1711525853269,-63.47795512,0.00054794,120]
[320711212,1711525853279,-500.0,0.00054794,120]
[320711213,1711525853289,-1065.67,0.00054794,120]
[320711214,1711525853298,-500.0,0.00054794,120]
[320711215,1711525853309,-1562.06,0.00054794,120]
[320711216,1711525853319,-8241.19,0.00054794,120]
[320711217,1711525853328,-807.13,0.00054794,120]
[320711218,1711525853338,-635.58,0.00054794,120]
[320711219,1711525853348,-1196.38,0.00054794,120]
[320711220,1711525853358,-500.0,0.00054794,2]
[320711221,1711525853368,-2798.03,0.00054794,120]
[320711222,1711525853378,-2094.44,0.00054794,120]
[320711223,1711525853388,-6460.39,0.00054794,120]
[320711224,1711525853397,-658.04,0.00054794,120]
[320711225,1711525853409,-95.60991505,0.00054794,120]
[320711226,1711525853426,-612.49008495,0.00054794,120]
[320711227,1711525853436,-189.57331664,0.00054794,120]
[320711228,1711525853631,-0.64962311,0.00054794,120]
[320711229,1711525853677,-1301.7,0.00054794,120]
[320711230,1711525853694,-2.06706025,0.00054794,120]
[320711231,1711525853704,-832.98285602,0.00054794,120]
[320711232,1711525853716,-320.26401847,0.00054794,120]
[320711233,1711525853732,-5749.38312551,0.00054794,120]
[320711234,1711525853742,-500.0,0.00054794,120]
[320711235,1711525853751,-624.85,0.00054794,120]
[320711236,1711525853762,-500.0,0.00054794,120]
[320711237,1711525853772,-2594.47,0.00054794,120]
[320711238,1711525853782,-290.59226887,0.00054794,120]
[320711239,1711525853793,-151.0,0.00054794,120]
[320711240,1711525853803,-522.55,0.00054794,120]
[320711241,1711525853814,-151.0,0.00054794,120]
[320711242,1711525853824,-652.24,0.00054794,120]
[320711243,1711525853835,-500.0,0.00054794,120]
[320711244,1711525853845,-1400.44,0.00054794,120]
[320711245,1711525853855,-500.0,0.00054794,120]
[320711246,1711525853865,-563.02,0.00054794,120]
[320711247,1711525853875,-876.36,0.00054794,120]
[320711248,1711525853885,-8258.45,0.00054794,120]
[320711249,1711525853894,-553.24,0.00054794,120]
[320711250,1711525853904,-1629.7,0.00054794,120]
[320711251,1711525853914,-1186.46,0.00054794,120]
[320711252,1711525853928,-151.0,0.00054794,14]
[320711253,1711525853940,-151.0,0.00054794,14]
[320711254,1711525853949,-500.0,0.00054794,120]
[320711255,1711525853959,-301.694048,0.00054794,120]
[320711256,1711525853968,-1344.96,0.00054794,120]
[320711257,1711525853978,-301.694048,0.00054794,120]
[320711258,1711525853987,-7181.06,0.00054794,120]
[320711259,1711525853996,-301.694048,0.00054794,120]
[320711260,1711525854148,-174.61665585,0.00054794,120]
[320711261,1711525854159,-301.694048,0.00054794,120]
[320711262,1711525854169,-806.88,0.00054794,120]
[320711263,1711525854179,-5183.58,0.00054794,120]
[320711264,1711525854190,-500.0,0.00054794,120]
[320711265,1711525854200,-1070.78,0.00054794,120]
[320711266,1711525854210,-151.0,0.00054794,120]
[320711267,1711525854224,-151.0,0.00054794,120]
[320711268,1711525854236,-421.01255,0.00054795,30]
[320711269,1711525854245,-500.0,0.00054795,120]
[320711270,1711525854255,-500.0,0.00054795,120]
[320711271,1711525854267,-500.0,0.00054795,120]
[320711272,1711525854276,-500.0,0.00054795,120]
[320711273,1711525854286,-500.0,0.00054795,120]
[320711274,1711525854295,-500.0,0.00054795,120]
[320711275,1711525854305,-500.0,0.00054795,120]
[320711276,1711525854315,-500.0,0.00054795,120]
[320711277,1711525854326,-500.0,0.00054795,120]
[320711278,1711525854345,-500.0,0.00054795,120]
[320711279,1711525854358,-500.0,0.00054795,120]
[320711280,1711525854368,-500.0,0.00054795,120]
[320711281,1711525854378,-500.0,0.00054795,120]
[320711282,1711525854388,-500.0,0.00054795,120]
[320711283,1711525854398,-500.0,0.00054795,120]
[320711284,1711525854410,-500.0,0.00054795,120]
[320711285,1711525854420,-500.0,0.00054795,120]
[320711286,1711525854430,-500.0,0.00054795,120]
[320711287,1711525854440,-500.0,0.00054795,120]
[320711288,1711525854450,-500.0,0.00054795,120]
[320711289,1711525854460,-500.0,0.00054795,120]
[320711290,1711525854470,-500.0,0.00054795,120]
[320711291,1711525854480,-500.0,0.00054795,120]
[320711292,1711525854490,-500.0,0.00054795,120]
[320711293,1711525854500,-500.0,0.00054795,120]
[320711294,1711525854509,-500.0,0.00054795,120]
[320711295,1711525854519,-500.0,0.00054795,120]
[320711296,1711525854529,-500.0,0.00054795,120]
[320711297,1711525854539,-500.0,0.00054795,120]
[320711298,1711525854548,-500.0,0.00054795,120]
[320711299,1711525854558,-500.0,0.00054795,120]
[320711300,1711525854568,-500.0,0.00054795,120]
[320711301,1711525854579,-500.0,0.00054795,120]
[320711302,1711525854589,-500.0,0.00054795,120]
[320711303,1711525854599,-500.0,0.00054795,120]
[320711304,1711525854609,-500.0,0.00054795,120]
[320711305,1711525854619,-500.0,0.00054795,120]
[320711306,1711525854629,-500.0,0.00054795,120]
[320711307,1711525854639,-500.0,0.00054795,120]
[320711308,1711525854649,-500.0,0.00054795,120]
[320711310,1711525854661,-500.0,0.00054795,120]
[320711311,1711525854671,-500.0,0.00054795,120]
[320711312,1711525854681,-500.0,0.00054795,120]
[320711313,1711525854690,-500.0,0.00054795,120]
[320711314,1711525854700,-500.0,0.00054795,120]
[320711315,1711525854709,-500.0,0.00054795,120]
[320711316,1711525854719,-500.0,0.00054795,120]
[320711317,1711525854729,-500.0,0.00054795,120]
[320711318,1711525854739,-500.0,0.00054795,120]
[320711319,1711525854749,-500.0,0.00054795,120]
[320711320,1711525854760,-500.0,0.00054795,120]
[320711321,1711525854770,-500.0,0.00054795,120]
[320711322,1711525854780,-500.0,0.00054795,120]
[320711323,1711525854795,-500.0,0.00054795,120]
[320711324,1711525854805,-500.0,0.00054795,120]
[320711325,1711525854816,-500.0,0.00054795,120]
[320711326,1711525854826,-500.0,0.00054795,120]
[320711327,1711525854836,-500.0,0.00054795,120]
[320711328,1711525854846,-500.0,0.00054795,120]
[320711329,1711525854856,-500.0,0.00054795,120]
[320711330,1711525854866,-500.0,0.00054795,120]
[320711331,1711525854877,-500.0,0.00054795,120]
[320711332,1711525854887,-500.0,0.00054795,120]